[Event "Titled Tuesday Blitz January 10 Early 2023"]
[White "Defend, Balint"]
[Black "Hambleton, Aman"]
[WhiteFideId "17004853"]
[BlackFideId "2606577"]
[WhiteElo "1673"]
[BlackElo "2420"]
[Result "0-1"]
[Round "06"]
[TimeControl "180+2"]
[Date "2023.01.10"]
[WhiteClock "0:00:20"]
[BlackClock "0:00:23"]

1. e4 {[%clk 0:03:00]}  c5 {[%clk 0:02:55]} 2. Nf3 {[%clk 0:02:59]}  e6 {[%clk 0:02:55]} 3. c3 {[%clk 0:02:59]}  Nf6 {[%clk 0:02:55]} 4. e5 {[%clk 0:02:59]}  Nd5 {[%clk 0:02:55]} 5. d4 {[%clk 0:03:00]}  cxd4 {[%clk 0:02:56]} 6. cxd4 {[%clk 0:03:00]}  d6 {[%clk 0:02:56]} 7. Bc4 {[%clk 0:03:00]}  Nb6 {[%clk 0:02:54]} 8. Bb3 {[%clk 0:03:00]}  Nc6 {[%clk 0:02:52]} 9. Qe2 {[%clk 0:02:59]}  Be7 {[%clk 0:02:28]} 10. O-O {[%clk 0:02:56]}  Bd7 {[%clk 0:01:47]} 11. Nc3 {[%clk 0:02:51]}  d5 {[%clk 0:01:34]} 12. Bf4 {[%clk 0:02:28]}  Na5 {[%clk 0:01:31]} 13. Nb5 {[%clk 0:02:21]}  Nxb3 {[%clk 0:01:23]} 14. axb3 {[%clk 0:02:22]}  Bxb5 {[%clk 0:01:22]} 15. Qxb5+ {[%clk 0:02:22]}  Qd7 {[%clk 0:01:21]} 16. Qxb6 {[%clk 0:02:03]}  axb6 {[%clk 0:01:22]} 17. Rxa8+ {[%clk 0:02:03]}  Bd8 {[%clk 0:01:20]} 18. Rc1 {[%clk 0:02:00]}  O-O {[%clk 0:01:17]} 19. Rcc8 {[%clk 0:02:00]}  Be7 {[%clk 0:01:15]} 20. Rxf8+ {[%clk 0:01:58]}  Bxf8 {[%clk 0:01:16]} 21. h4 {[%clk 0:01:54]}  h6 {[%clk 0:00:40]} 22. g4 {[%clk 0:01:40]}  Qe7 {[%clk 0:00:33]} 23. Bd2 {[%clk 0:01:32]}  Kh7 {[%clk 0:00:27]} 24. g5 {[%clk 0:01:22]}  h5 {[%clk 0:00:24]} 25. g6+ {[%clk 0:00:32]}  Kxg6 {[%clk 0:00:22]} 26. Kg2 {[%clk 0:00:32]}  f6 {[%clk 0:00:20]} 27. exf6 {[%clk 0:00:27]}  gxf6 {[%clk 0:00:21]} 28. Bf4 {[%clk 0:00:26]}  Bh6 {[%clk 0:00:17]} 29. Bg3 {[%clk 0:00:25]}  Qd7 {[%clk 0:00:14]} 30. Rb8 {[%clk 0:00:24]}  Kf5 {[%clk 0:00:06]} 31. Rh8 {[%clk 0:00:21]}  Bg7 {[%clk 0:00:06]} 32. Rb8 {[%clk 0:00:19]}  Qc6 {[%clk 0:00:05]} 33. Re8 {[%clk 0:00:17]}  Qxe8 {[%clk 0:00:02]} 34. Ng1 {[%clk 0:00:15]}  b5 {[%clk 0:00:02]} 35. Kf3 {[%clk 0:00:15]}  Bh6 {[%clk 0:00:02]} 36. Bh2 {[%clk 0:00:13]}  b4 {[%clk 0:00:02]} 37. Ne2 {[%clk 0:00:13]}  Kg6 {[%clk 0:00:02]} 38. Ng3 {[%clk 0:00:14]}  Qd7 {[%clk 0:00:03]} 39. Ne2 {[%clk 0:00:14]}  Qb5 {[%clk 0:00:03]} 40. Bf4 {[%clk 0:00:15]}  Qd3+ {[%clk 0:00:03]} 41. Be3 {[%clk 0:00:15]}  Bxe3 {[%clk 0:00:04]} 42. fxe3 {[%clk 0:00:16]}  Qe4+ {[%clk 0:00:05]} 43. Kf2 {[%clk 0:00:16]}  Qc2 {[%clk 0:00:06]} 44. Kf3 {[%clk 0:00:16]}  e5 {[%clk 0:00:06]} 45. Ng3 {[%clk 0:00:16]}  Qxb2 {[%clk 0:00:07]} 46. dxe5 {[%clk 0:00:15]}  fxe5 {[%clk 0:00:07]} 47. e4 {[%clk 0:00:15]}  Qxb3+ {[%clk 0:00:08]} 48. Kg2 {[%clk 0:00:15]}  Qxg3+ {[%clk 0:00:08]} 49. Kxg3 {[%clk 0:00:15]}  d4 {[%clk 0:00:07]} 50. Kf3 {[%clk 0:00:15]}  Kf6 {[%clk 0:00:08]} 51. Ke2 {[%clk 0:00:16]}  Ke6 {[%clk 0:00:09]} 52. Kd3 {[%clk 0:00:17]}  Kd6 {[%clk 0:00:10]} 53. Kc4 {[%clk 0:00:18]}  Kc6 {[%clk 0:00:11]} 54. Kxb4 {[%clk 0:00:18]}  b5 {[%clk 0:00:11]} 55. Ka3 {[%clk 0:00:13]}  Kc5 {[%clk 0:00:11]} 56. Kb3 {[%clk 0:00:14]}  b4 {[%clk 0:00:12]} 57. Kc2 {[%clk 0:00:13]}  Kc4 {[%clk 0:00:13]} 58. Kd2 {[%clk 0:00:13]}  b3 {[%clk 0:00:13]} 59. Kd1 {[%clk 0:00:11]}  d3 {[%clk 0:00:14]} 60. Kd2 {[%clk 0:00:11]}  Kd4 {[%clk 0:00:15]} 61. Kd1 {[%clk 0:00:11]}  Kxe4 {[%clk 0:00:15]} 62. Kd2 {[%clk 0:00:12]}  Kd4 {[%clk 0:00:16]} 63. Kd1 {[%clk 0:00:12]}  e4 {[%clk 0:00:17]} 64. Kc1 {[%clk 0:00:13]}  e3 {[%clk 0:00:18]} 65. Kd1 {[%clk 0:00:14]}  Ke4 {[%clk 0:00:19]} 66. Ke1 {[%clk 0:00:15]}  Kf4 {[%clk 0:00:20]} 67. Kd1 {[%clk 0:00:15]}  Kg4 {[%clk 0:00:20]} 68. Ke1 {[%clk 0:00:16]}  Kxh4 {[%clk 0:00:21]} 69. Kd1 {[%clk 0:00:17]}  Kg3 {[%clk 0:00:21]} 70. Kc1 {[%clk 0:00:18]}  h4 {[%clk 0:00:22]} 71. Kb2 {[%clk 0:00:19]}  Kf2 {[%clk 0:00:22]} 72. Kc3 {[%clk 0:00:20]}  d2 {[%clk 0:00:23]} 0-1


[Site "https://www.chess.com"]

[Event "Titled Tuesday Blitz January 10 Early 2023"]
[White "Gaitan, Juan Manuel"]
[Black "Krysa, Leandro"]
[WhiteFideId "121657"]
[BlackFideId "116807"]
[WhiteElo "2328"]
[BlackElo "2541"]
[Result "1/2-1/2"]
[Round "06"]
[TimeControl "180+2"]
[Date "2023.01.10"]
[WhiteClock "0:00:29"]
[BlackClock "0:00:18"]

1. Nf3 {[%clk 0:02:59]}  d5 {[%clk 0:02:59]} 2. g3 {[%clk 0:02:59]}  c6 {[%clk 0:02:59]} 3. Bg2 {[%clk 0:03:00]}  Bg4 {[%clk 0:02:59]} 4. O-O {[%clk 0:03:00]}  Nd7 {[%clk 0:02:59]} 5. b3 {[%clk 0:02:56]}  e5 {[%clk 0:02:57]} 6. Bb2 {[%clk 0:02:57]}  Bd6 {[%clk 0:02:56]} 7. c4 {[%clk 0:02:57]}  Ngf6 {[%clk 0:02:53]} 8. d3 {[%clk 0:02:46]}  O-O {[%clk 0:02:52]} 9. Qc2 {[%clk 0:02:44]}  Re8 {[%clk 0:02:51]} 10. e4 {[%clk 0:02:42]}  a5 {[%clk 0:02:43]} 11. exd5 {[%clk 0:02:12]}  cxd5 {[%clk 0:02:40]} 12. Nbd2 {[%clk 0:02:13]}  h6 {[%clk 0:02:25]} 13. Rae1 {[%clk 0:02:08]}  Qc7 {[%clk 0:02:05]} 14. Qb1 {[%clk 0:01:55]}  d4 {[%clk 0:02:04]} 15. a3 {[%clk 0:01:53]}  Bf5 {[%clk 0:02:00]} 16. Nh4 {[%clk 0:01:51]}  Bh7 {[%clk 0:01:59]} 17. Ne4 {[%clk 0:01:47]}  Nxe4 {[%clk 0:01:59]} 18. Bxe4 {[%clk 0:01:48]}  Bxe4 {[%clk 0:01:59]} 19. Rxe4 {[%clk 0:01:48]}  Nc5 {[%clk 0:01:58]} 20. Re2 {[%clk 0:01:41]}  Nxb3 {[%clk 0:01:54]} 21. Rfe1 {[%clk 0:01:39]}  a4 {[%clk 0:01:46]} 22. Nf5 {[%clk 0:01:38]}  Bc5 {[%clk 0:01:40]} 23. f4 {[%clk 0:01:35]}  e4 {[%clk 0:01:27]} 24. Rxe4 {[%clk 0:01:32]}  Rxe4 {[%clk 0:01:27]} 25. dxe4 {[%clk 0:01:32]}  d3+ {[%clk 0:01:19]} 26. Kg2 {[%clk 0:01:32]}  d2 {[%clk 0:01:19]} 27. Rd1 {[%clk 0:01:31]}  f6 {[%clk 0:01:19]} 28. e5 {[%clk 0:01:21]}  Qc6+ {[%clk 0:01:09]} 29. Kh3 {[%clk 0:01:20]}  fxe5 {[%clk 0:00:48]} 30. Bxe5 {[%clk 0:01:18]}  Bf8 {[%clk 0:00:44]} 31. Qd3 {[%clk 0:01:16]}  Rc8 {[%clk 0:00:37]} 32. g4 {[%clk 0:00:47]}  Qxc4 {[%clk 0:00:32]} 33. Nxh6+ {[%clk 0:00:46]}  Kh8 {[%clk 0:00:27]} 34. Qg6 {[%clk 0:00:41]}  Qe2 {[%clk 0:00:16]} 35. Nf7+ {[%clk 0:00:26]}  Kg8 {[%clk 0:00:16]} 36. Nh6+ {[%clk 0:00:27]}  Kh8 {[%clk 0:00:16]} 37. Nf7+ {[%clk 0:00:28]}  Kg8 {[%clk 0:00:17]} 38. Nh6+ {[%clk 0:00:29]}  Kh8 {[%clk 0:00:18]} 1/2-1/2


[Site "https://www.chess.com"]

[Event "Titled Tuesday Blitz January 10 Early 2023"]
[White "Garcia Ramos, Daniel"]
[Black "Pein, Jonathan"]
[WhiteFideId "32010311"]
[BlackFideId "417092"]
[WhiteElo "2442"]
[BlackElo "2265"]
[Result "1-0"]
[Round "06"]
[TimeControl "180+2"]
[Date "2023.01.10"]
[WhiteClock "0:00:17"]
[BlackClock "0:00:02"]

1. b3 {[%clk 0:03:00]}  a5 {[%clk 0:02:55]} 2. e4 {[%clk 0:02:59]}  a4 {[%clk 0:02:51]} 3. Nf3 {[%clk 0:02:59]}  axb3 {[%clk 0:02:52]} 4. cxb3 {[%clk 0:03:00]}  d6 {[%clk 0:02:49]} 5. Bb2 {[%clk 0:03:00]}  e5 {[%clk 0:02:48]} 6. Nc3 {[%clk 0:03:00]}  Nf6 {[%clk 0:02:48]} 7. Bc4 {[%clk 0:03:00]}  Be7 {[%clk 0:02:47]} 8. O-O {[%clk 0:03:00]}  O-O {[%clk 0:02:46]} 9. h3 {[%clk 0:02:52]}  c6 {[%clk 0:02:44]} 10. d4 {[%clk 0:02:48]}  exd4 {[%clk 0:02:44]} 11. Nxd4 {[%clk 0:02:41]}  Nbd7 {[%clk 0:02:44]} 12. Rc1 {[%clk 0:02:32]}  Nc5 {[%clk 0:02:34]} 13. Qc2 {[%clk 0:02:29]}  Re8 {[%clk 0:02:34]} 14. b4 {[%clk 0:02:23]}  Ne6 {[%clk 0:02:07]} 15. Rfd1 {[%clk 0:02:16]}  Qb6 {[%clk 0:02:03]} 16. Nf5 {[%clk 0:02:12]}  Qxb4 {[%clk 0:01:50]} 17. Bb3 {[%clk 0:02:03]}  Nc5 {[%clk 0:01:42]} 18. Nxe7+ {[%clk 0:01:59]}  Rxe7 {[%clk 0:01:43]} 19. Rxd6 {[%clk 0:01:51]}  Bxh3 {[%clk 0:00:51]} 20. Rxf6 {[%clk 0:01:47]}  Nxb3 {[%clk 0:00:44]} 21. axb3 {[%clk 0:01:45]}  gxf6 {[%clk 0:00:26]} 22. gxh3 {[%clk 0:01:45]}  Rd8 {[%clk 0:00:18]} 23. Rd1 {[%clk 0:01:41]}  Rxd1+ {[%clk 0:00:17]} 24. Qxd1 {[%clk 0:01:42]}  Re5 {[%clk 0:00:09]} 25. f4 {[%clk 0:01:37]}  Rc5 {[%clk 0:00:06]} 26. Qg4+ {[%clk 0:01:21]}  Kf8 {[%clk 0:00:06]} 27. Qc8+ {[%clk 0:01:09]}  Kg7 {[%clk 0:00:07]} 28. Qg4+ {[%clk 0:01:09]}  Kf8 {[%clk 0:00:07]} 29. Qg3 {[%clk 0:00:35]}  Qxb3 {[%clk 0:00:06]} 30. f5 {[%clk 0:00:35]}  Qxb2 {[%clk 0:00:02]} 31. Qd6+ {[%clk 0:00:35]}  Kg7 {[%clk 0:00:02]} 32. Qxc5 {[%clk 0:00:36]}  Qc1+ {[%clk 0:00:03]} 33. Kf2 {[%clk 0:00:36]}  Qd2+ {[%clk 0:00:03]} 34. Ne2 {[%clk 0:00:36]}  Qd7 {[%clk 0:00:02]} 35. Qe3 {[%clk 0:00:34]}  b5 {[%clk 0:00:02]} 36. Nf4 {[%clk 0:00:31]}  Qd6 {[%clk 0:00:02]} 37. Nh5+ {[%clk 0:00:31]}  Kf8 {[%clk 0:00:03]} 38. Nf4 {[%clk 0:00:23]}  b4 {[%clk 0:00:03]} 39. Nd3 {[%clk 0:00:23]}  b3 {[%clk 0:00:02]} 40. Ke1 {[%clk 0:00:17]} 1-0


[Site "https://www.chess.com"]

[Event "Titled Tuesday Blitz January 10 Early 2023"]
[White "Skvortsov, Andrei"]
[Black "Buchenau, Frank"]
[WhiteFideId "24108600"]
[BlackFideId "4604350"]
[WhiteElo "2313"]
[BlackElo "2222"]
[Result "1-0"]
[Round "06"]
[TimeControl "180+2"]
[Date "2023.01.10"]
[WhiteClock "0:00:06"]
[BlackClock "0:00:01"]

1. c4 {[%clk 0:03:00]}  e5 {[%clk 0:02:57]} 2. Nc3 {[%clk 0:02:57]}  Nf6 {[%clk 0:02:57]} 3. Nf3 {[%clk 0:02:55]}  Nc6 {[%clk 0:02:57]} 4. e3 {[%clk 0:02:55]}  Bb4 {[%clk 0:02:57]} 5. Qc2 {[%clk 0:02:54]}  d6 {[%clk 0:02:54]} 6. a3 {[%clk 0:02:50]}  Bxc3 {[%clk 0:02:51]} 7. Qxc3 {[%clk 0:02:50]}  e4 {[%clk 0:02:49]} 8. Nd4 {[%clk 0:02:49]}  Ne5 {[%clk 0:02:47]} 9. Be2 {[%clk 0:02:48]}  O-O {[%clk 0:02:45]} 10. f4 {[%clk 0:02:45]}  exf3 {[%clk 0:02:43]} 11. Nxf3 {[%clk 0:02:45]}  Bg4 {[%clk 0:02:36]} 12. Nxe5 {[%clk 0:02:43]}  Bxe2 {[%clk 0:02:35]} 13. Kxe2 {[%clk 0:02:23]}  dxe5 {[%clk 0:02:34]} 14. Qxe5 {[%clk 0:02:22]}  Re8 {[%clk 0:02:35]} 15. Qf5 {[%clk 0:02:17]}  Qd6 {[%clk 0:02:13]} 16. Rf1 {[%clk 0:01:42]}  Rad8 {[%clk 0:02:01]} 17. g3 {[%clk 0:01:11]}  Re4 {[%clk 0:01:52]} 18. Rf4 {[%clk 0:00:53]}  Qd3+ {[%clk 0:01:45]} 19. Ke1 {[%clk 0:00:51]}  Qxc4 {[%clk 0:01:27]} 20. Rxe4 {[%clk 0:00:48]}  Nxe4 {[%clk 0:01:26]} 21. Qf1 {[%clk 0:00:17]}  Qc2 {[%clk 0:01:11]} 22. Qe2 {[%clk 0:00:16]}  Rd3 {[%clk 0:01:00]} 23. a4 {[%clk 0:00:16]}  Nc5 {[%clk 0:00:57]} 24. Qg4 {[%clk 0:00:09]}  f5 {[%clk 0:00:53]} 25. Qd1 {[%clk 0:00:08]}  Qc4 {[%clk 0:00:45]} 26. b3 {[%clk 0:00:05]}  Qe4 {[%clk 0:00:45]} 27. Qe2 {[%clk 0:00:04]}  Nxb3 {[%clk 0:00:43]} 28. Rb1 {[%clk 0:00:04]}  Rxd2 {[%clk 0:00:34]} 29. Bxd2 {[%clk 0:00:01]}  Qxb1+ {[%clk 0:00:34]} 30. Kf2 {[%clk 0:00:02]}  Qc2 {[%clk 0:00:28]} 31. Be1 {[%clk 0:00:02]}  Qxe2+ {[%clk 0:00:26]} 32. Kxe2 {[%clk 0:00:03]}  Kf7 {[%clk 0:00:23]} 33. Bb4 {[%clk 0:00:03]}  c5 {[%clk 0:00:23]} 34. Bc3 {[%clk 0:00:03]}  g6 {[%clk 0:00:20]} 35. Kd3 {[%clk 0:00:03]}  b6 {[%clk 0:00:15]} 36. Kc4 {[%clk 0:00:04]}  Nc1 {[%clk 0:00:15]} 37. Kb5 {[%clk 0:00:04]}  Na2 {[%clk 0:00:13]} 38. Bb2 {[%clk 0:00:03]}  Ke6 {[%clk 0:00:12]} 39. Ka6 {[%clk 0:00:03]}  c4 {[%clk 0:00:13]} 40. Kxa7 {[%clk 0:00:03]}  c3 {[%clk 0:00:12]} 41. Ba3 {[%clk 0:00:04]}  c2 {[%clk 0:00:10]} 42. Kxb6 {[%clk 0:00:04]}  c1=Q {[%clk 0:00:04]} 43. Bxc1 {[%clk 0:00:05]}  Nxc1 {[%clk 0:00:04]} 44. a5 {[%clk 0:00:05]}  Nd3 {[%clk 0:00:02]} 45. a6 {[%clk 0:00:06]}  Nb4 {[%clk 0:00:01]} 46. a7 {[%clk 0:00:06]}  Nd5+ {[%clk 0:00:01]} 47. Kb7 {[%clk 0:00:06]} 1-0


[Site "https://www.chess.com"]

[Event "Titled Tuesday Blitz January 10 Early 2023"]
[White "Ladan, Nicholas"]
[Black "Csonka, Balazs"]
[WhiteFideId "30918855"]
[BlackFideId "742910"]
[WhiteElo "2228"]
[BlackElo "2496"]
[Result "1-0"]
[Round "06"]
[TimeControl "180+2"]
[Date "2023.01.10"]
[WhiteClock "0:00:23"]
[BlackClock "0:00:01"]

1. b4 {[%clk 0:03:00]}  e5 {[%clk 0:02:56]} 2. Bb2 {[%clk 0:03:01]}  Bxb4 {[%clk 0:02:55]} 3. Bxe5 {[%clk 0:03:01]}  Nf6 {[%clk 0:02:56]} 4. c3 {[%clk 0:03:01]}  Ba5 {[%clk 0:02:49]} 5. Nf3 {[%clk 0:03:01]}  O-O {[%clk 0:02:48]} 6. e3 {[%clk 0:02:58]}  d5 {[%clk 0:02:45]} 7. d4 {[%clk 0:02:58]}  Nbd7 {[%clk 0:02:42]} 8. Bg3 {[%clk 0:02:57]}  Ne4 {[%clk 0:02:42]} 9. Bd3 {[%clk 0:02:54]}  Nxc3 {[%clk 0:02:36]} 10. Qd2 {[%clk 0:02:49]}  c5 {[%clk 0:01:18]} 11. Nxc3 {[%clk 0:02:49]}  c4 {[%clk 0:01:12]} 12. Bb1 {[%clk 0:02:33]}  b5 {[%clk 0:01:08]} 13. O-O {[%clk 0:02:30]}  g6 {[%clk 0:00:59]} 14. a4 {[%clk 0:02:22]}  b4 {[%clk 0:00:35]} 15. Nxd5 {[%clk 0:02:20]}  Bb7 {[%clk 0:00:35]} 16. e4 {[%clk 0:02:03]}  Bxd5 {[%clk 0:00:27]} 17. exd5 {[%clk 0:02:02]}  b3 {[%clk 0:00:27]} 18. Qh6 {[%clk 0:01:57]}  Qf6 {[%clk 0:00:21]} 19. Ne5 {[%clk 0:01:50]}  Nb6 {[%clk 0:00:21]} 20. Ng4 {[%clk 0:01:46]}  Qg7 {[%clk 0:00:21]} 21. Nf6+ {[%clk 0:01:15]}  Kh8 {[%clk 0:00:12]} 22. Qxg7+ {[%clk 0:01:15]}  Kxg7 {[%clk 0:00:13]} 23. Be5 {[%clk 0:01:15]}  c3 {[%clk 0:00:07]} 24. Bd3 {[%clk 0:01:01]}  c2 {[%clk 0:00:08]} 25. Rac1 {[%clk 0:00:48]}  Rfc8 {[%clk 0:00:07]} 26. Nd7+ {[%clk 0:00:42]}  Kg8 {[%clk 0:00:05]} 27. Nc5 {[%clk 0:00:41]}  Bd2 {[%clk 0:00:04]} 28. Nxb3 {[%clk 0:00:40]}  Bxc1 {[%clk 0:00:03]} 29. Rxc1 {[%clk 0:00:41]}  Rc3 {[%clk 0:00:02]} 30. Nc5 {[%clk 0:00:32]}  Ra3 {[%clk 0:00:01]} 31. Bxc2 {[%clk 0:00:30]}  Nc4 {[%clk 0:00:02]} 32. Bd1 {[%clk 0:00:29]}  Nxe5 {[%clk 0:00:02]} 33. dxe5 {[%clk 0:00:30]}  Rc8 {[%clk 0:00:02]} 34. d6 {[%clk 0:00:29]}  Kg7 {[%clk 0:00:01]} 35. d7 {[%clk 0:00:28]}  Rd8 {[%clk 0:00:01]} 36. Bf3 {[%clk 0:00:28]}  Ra2 {[%clk 0:00:01]} 37. Bc6 {[%clk 0:00:27]}  Rd2 {[%clk 0:00:02]} 38. Nb7 {[%clk 0:00:27]}  R8xd7 {[%clk 0:00:02]} 39. Bxd7 {[%clk 0:00:28]}  Rxd7 {[%clk 0:00:02]} 40. Nd6 {[%clk 0:00:29]}  Re7 {[%clk 0:00:01]} 41. f4 {[%clk 0:00:29]}  Rd7 {[%clk 0:00:01]} 42. Rc8 {[%clk 0:00:29]}  Kh6 {[%clk 0:00:01]} 43. g4 {[%clk 0:00:28]}  f5 {[%clk 0:00:01]} 44. h3 {[%clk 0:00:25]}  fxg4 {[%clk 0:00:01]} 45. hxg4 {[%clk 0:00:25]}  g5 {[%clk 0:00:01]} 46. f5 {[%clk 0:00:24]}  a5 {[%clk 0:00:01]} 47. Rc6 {[%clk 0:00:24]}  Rc7 {[%clk 0:00:01]} 48. Nf7+ {[%clk 0:00:22]}  Kg7 {[%clk 0:00:01]} 49. Rxc7 {[%clk 0:00:23]} 1-0


[Site "https://www.chess.com"]

[Event "Titled Tuesday Blitz January 10 Early 2023"]
[White "Ortega Ruiz, Jose Miguel"]
[Black "Martinez Ramirez, Lennis"]
[WhiteFideId "2209713"]
[BlackFideId "3509079"]
[WhiteElo "2351"]
[BlackElo "2426"]
[Result "0-1"]
[Round "06"]
[TimeControl "180+2"]
[Date "2023.01.10"]
[WhiteClock "0:01:30"]
[BlackClock "0:02:04"]

1. Nf3 {[%clk 0:03:00]}  d5 {[%clk 0:02:59]} 2. g3 {[%clk 0:02:58]}  Nf6 {[%clk 0:02:58]} 3. Bg2 {[%clk 0:02:59]}  Bf5 {[%clk 0:02:58]} 4. O-O {[%clk 0:03:00]}  e6 {[%clk 0:02:58]} 5. c4 {[%clk 0:03:00]}  h6 {[%clk 0:02:59]} 6. d4 {[%clk 0:02:58]}  c6 {[%clk 0:02:59]} 7. Ne5 {[%clk 0:02:58]}  Nbd7 {[%clk 0:02:58]} 8. Nc3 {[%clk 0:02:57]}  Bh7 {[%clk 0:02:55]} 9. f4 {[%clk 0:02:56]}  Bb4 {[%clk 0:02:53]} 10. cxd5 {[%clk 0:02:55]}  cxd5 {[%clk 0:02:52]} 11. Bd2 {[%clk 0:02:53]}  O-O {[%clk 0:02:48]} 12. a3 {[%clk 0:02:53]}  Bxc3 {[%clk 0:02:47]} 13. Bxc3 {[%clk 0:02:54]}  a5 {[%clk 0:02:42]} 14. e3 {[%clk 0:02:52]}  Qb6 {[%clk 0:02:38]} 15. Qa4 {[%clk 0:02:49]}  Nxe5 {[%clk 0:02:34]} 16. fxe5 {[%clk 0:02:50]}  Ne4 {[%clk 0:02:35]} 17. Rac1 {[%clk 0:02:49]}  Bg6 {[%clk 0:02:33]} 18. Qd1 {[%clk 0:02:49]}  Nxc3 {[%clk 0:02:33]} 19. bxc3 {[%clk 0:02:50]}  Rfc8 {[%clk 0:02:32]} 20. Qa4 {[%clk 0:02:48]}  Qc6 {[%clk 0:02:30]} 21. Qxc6 {[%clk 0:02:46]}  Rxc6 {[%clk 0:02:31]} 22. c4 {[%clk 0:02:46]}  Rxc4 {[%clk 0:02:29]} 23. Rxc4 {[%clk 0:02:47]}  dxc4 {[%clk 0:02:28]} 24. Bxb7 {[%clk 0:02:47]}  Rb8 {[%clk 0:02:27]} 25. Bc6 {[%clk 0:02:47]}  c3 {[%clk 0:02:27]} 26. Ba4 {[%clk 0:02:07]}  c2 {[%clk 0:02:21]} 27. Bxc2 {[%clk 0:02:07]}  Bxc2 {[%clk 0:02:19]} 28. Kf2 {[%clk 0:02:07]}  Rb2 {[%clk 0:02:18]} 29. Kf3 {[%clk 0:02:07]}  Ra2 {[%clk 0:02:15]} 30. Rc1 {[%clk 0:02:06]}  h5 {[%clk 0:02:12]} 31. h3 {[%clk 0:02:04]}  g5 {[%clk 0:02:11]} 32. g4 {[%clk 0:02:02]}  h4 {[%clk 0:02:10]} 33. a4 {[%clk 0:01:33]}  Kg7 {[%clk 0:02:08]} 34. e4 {[%clk 0:01:30]}  Ra3+ {[%clk 0:02:05]} 35. Kf2 {[%clk 0:01:30]}  Bxe4 {[%clk 0:02:05]} 36. Rc5 {[%clk 0:01:30]}  Rxa4 {[%clk 0:02:05]} 37. Ke3 {[%clk 0:01:29]}  Bd5 {[%clk 0:02:05]} 38. Rc3 {[%clk 0:01:30]}  Rb4 {[%clk 0:02:04]} 39. Ra3 {[%clk 0:01:29]}  Rb3+ {[%clk 0:02:04]} 40. Kf2 {[%clk 0:01:30]} 0-1


[Site "https://www.chess.com"]

[Event "Titled Tuesday Blitz January 10 Early 2023"]
[White "Papasimakopoulos, Alexandros"]
[Black "Goldin, Roman"]
[WhiteFideId "4244125"]
[BlackFideId "2803860"]
[WhiteElo "2401"]
[BlackElo "2322"]
[Result "1-0"]
[Round "06"]
[TimeControl "180+2"]
[Date "2023.01.10"]
[WhiteClock "0:00:22"]
[BlackClock "0:00:01"]

1. d4 {[%clk 0:03:00]}  Nf6 {[%clk 0:02:58]} 2. c4 {[%clk 0:02:55]}  Nc6 {[%clk 0:02:56]} 3. Nf3 {[%clk 0:02:42]}  e6 {[%clk 0:02:55]} 4. a3 {[%clk 0:02:38]}  g6 {[%clk 0:02:55]} 5. Nc3 {[%clk 0:02:36]}  Bg7 {[%clk 0:02:51]} 6. d5 {[%clk 0:02:36]}  Ne7 {[%clk 0:02:44]} 7. e4 {[%clk 0:02:36]}  d6 {[%clk 0:02:44]} 8. Be2 {[%clk 0:02:30]}  O-O {[%clk 0:02:41]} 9. O-O {[%clk 0:02:30]}  e5 {[%clk 0:02:35]} 10. Ne1 {[%clk 0:02:25]}  Nd7 {[%clk 0:02:30]} 11. f3 {[%clk 0:02:24]}  f5 {[%clk 0:02:30]} 12. Be3 {[%clk 0:02:24]}  Nf6 {[%clk 0:02:29]} 13. Nd3 {[%clk 0:02:17]}  Nh5 {[%clk 0:02:19]} 14. Qd2 {[%clk 0:02:08]}  Kh8 {[%clk 0:02:05]} 15. b4 {[%clk 0:02:00]}  f4 {[%clk 0:02:03]} 16. Bf2 {[%clk 0:02:00]}  g5 {[%clk 0:02:03]} 17. c5 {[%clk 0:02:00]}  Nf6 {[%clk 0:01:42]} 18. Rac1 {[%clk 0:01:55]}  Bd7 {[%clk 0:01:32]} 19. b5 {[%clk 0:01:51]}  b6 {[%clk 0:01:14]} 20. cxd6 {[%clk 0:01:49]}  cxd6 {[%clk 0:01:14]} 21. Nb4 {[%clk 0:01:49]}  g4 {[%clk 0:01:12]} 22. Nc6 {[%clk 0:01:48]}  Qe8 {[%clk 0:01:12]} 23. Kh1 {[%clk 0:01:35]}  Ng6 {[%clk 0:00:43]} 24. a4 {[%clk 0:01:26]}  Rg8 {[%clk 0:00:23]} 25. fxg4 {[%clk 0:01:23]}  Nxg4 {[%clk 0:00:17]} 26. Bg1 {[%clk 0:01:23]}  Bh6 {[%clk 0:00:14]} 27. Nd1 {[%clk 0:01:23]}  Nh4 {[%clk 0:00:13]} 28. Bf3 {[%clk 0:01:19]}  Qf7 {[%clk 0:00:10]} 29. h3 {[%clk 0:01:12]}  Nf6 {[%clk 0:00:09]} 30. Qb4 {[%clk 0:01:09]}  Nh5 {[%clk 0:00:07]} 31. Bf2 {[%clk 0:01:04]}  Nxf3 {[%clk 0:00:06]} 32. Qxd6 {[%clk 0:01:01]}  Bxh3 {[%clk 0:00:04]} 33. gxh3 {[%clk 0:00:56]}  Qg7 {[%clk 0:00:03]} 34. Ne3 {[%clk 0:00:42]}  Ng3+ {[%clk 0:00:01]} 35. Bxg3 {[%clk 0:00:40]}  Qxg3 {[%clk 0:00:02]} 36. Qf6+ {[%clk 0:00:31]}  Bg7 {[%clk 0:00:01]} 37. Rxf3 {[%clk 0:00:22]} 1-0


[Site "https://www.chess.com"]